[Event "Early-Titled-Tuesday-Blitz-February-13-2024"]
[Site "Chess.com"]
[Date "2024.02.13"]
[Round "2"]
[White "egnfanclub"]
[Black "ChainedDowntohell"]
[Result "1-0"]
[WhiteElo "2355"]
[BlackElo "2531"]
[TimeControl "180+1"]
[EndTime "8:19:53 PST"]
[Termination "egnfanclub won by resignation"]

1. e4 {[%clk 0:03:00.9]} 1... e6 {[%clk 0:02:58.1]} 2. d4 {[%clk 0:02:59.9]}
2... a6 {[%clk 0:02:57.3]} 3. c4 {[%clk 0:02:57.7]} 3... d5 {[%clk 0:02:54.5]}
4. exd5 {[%clk 0:02:53.4]} 4... exd5 {[%clk 0:02:53.9]} 5. Nc3 {[%clk
0:02:52.3]} 5... Nf6 {[%clk 0:02:52.7]} 6. Nf3 {[%clk 0:02:46.1]} 6... Bb4
{[%clk 0:02:47.1]} 7. Bd3 {[%clk 0:02:40.8]} 7... O-O {[%clk 0:02:45.6]} 8. O-O
{[%clk 0:02:40.5]} 8... dxc4 {[%clk 0:02:38.8]} 9. Bxc4 {[%clk 0:02:40.4]} 9...
Nc6 {[%clk 0:02:37.7]} 10. a3 {[%clk 0:02:31.8]} 10... Bd6 {[%clk 0:02:36.3]}
11. h3 {[%clk 0:02:24]} 11... Bf5 {[%clk 0:02:30.3]} 12. Bg5 {[%clk 0:02:23.4]}
12... h6 {[%clk 0:02:28.2]} 13. Bh4 {[%clk 0:02:21.8]} 13... g5 {[%clk
0:02:05.1]} 14. Bg3 {[%clk 0:02:19.9]} 14... Bxg3 {[%clk 0:02:04.1]} 15. fxg3
{[%clk 0:02:20.8]} 15... Bg6 {[%clk 0:02:00.7]} 16. d5 {[%clk 0:01:38.8]} 16...
Na5 {[%clk 0:01:20]} 17. Ba2 {[%clk 0:01:32.2]} 17... c5 {[%clk 0:00:40.4]} 18.
Kh2 {[%clk 0:01:20.3]} 18... Qd6 {[%clk 0:00:39.6]} 19. Qd2 {[%clk 0:00:57.6]}
19... Rfe8 {[%clk 0:00:33.7]} 20. Rad1 {[%clk 0:00:56.8]} 20... b5 {[%clk
0:00:28.6]} 21. b4 {[%clk 0:00:45.5]} 21... cxb4 {[%clk 0:00:26.3]} 22. axb4
{[%clk 0:00:46.4]} 22... Nc4 {[%clk 0:00:24.6]} 23. Bxc4 {[%clk 0:00:44.6]}
23... bxc4 {[%clk 0:00:25.5]} 24. Nd4 {[%clk 0:00:44.2]} 24... Re5 {[%clk
0:00:12.7]} 25. Nc6 {[%clk 0:00:39.7]} 25... Ree8 {[%clk 0:00:05.9]} 26. Qd4
{[%clk 0:00:34.6]} 26... Nh5 {[%clk 0:00:05.9]} 27. Qg4 {[%clk 0:00:34.4]} 27...
Rac8 {[%clk 0:00:02.2]} 28. Rf2 {[%clk 0:00:26.2]} 28... Kh7 {[%clk 0:00:02.7]}
29. Rdf1 {[%clk 0:00:25.5]} 29... Rc7 {[%clk 0:00:03.2]} 30. Qf3 {[%clk
0:00:17.5]} 30... Kg8 {[%clk 0:00:03.2]} 31. Kg1 {[%clk 0:00:17.2]} 31... Nxg3
{[%clk 0:00:03.4]} 32. Rd1 {[%clk 0:00:16.8]} 32... Nf5 {[%clk 0:00:03.9]} 33.
Re2 {[%clk 0:00:13.1]} 33... Rxe2 {[%clk 0:00:04]} 34. Qxe2 {[%clk 0:00:14]}
34... Kg7 {[%clk 0:00:03.8]} 35. Qd2 {[%clk 0:00:13.4]} 35... Qe5 {[%clk
0:00:03.4]} 36. Re1 {[%clk 0:00:13]} 36... Qf6 {[%clk 0:00:03.6]} 37. Ne4 {[%clk
0:00:13.1]} 37... Qa1 {[%clk 0:00:02.2]} 38. Rxa1 {[%clk 0:00:12.4]} 1-0

[Event "Early-Titled-Tuesday-Blitz-February-13-2024"]
[Site "Chess.com"]
[Date "2024.02.13"]
[Round "2"]
[White "FontVella8"]
[Black "ClaudiaSof"]
[Result "1-0"]
[WhiteElo "2733"]
[BlackElo "2307"]
[TimeControl "180+1"]
[EndTime "8:19:54 PST"]
[Termination "FontVella8 won on time"]

1. Nf3 {[%clk 0:02:58.1]} 1... c5 {[%clk 0:02:59.8]} 2. e4 {[%clk 0:02:57.3]}
2... Nc6 {[%clk 0:02:59.5]} 3. d4 {[%clk 0:02:57.7]} 3... cxd4 {[%clk
0:02:58.8]} 4. Nxd4 {[%clk 0:02:58.6]} 4... g6 {[%clk 0:02:58.7]} 5. c4 {[%clk
0:02:58.5]} 5... Bg7 {[%clk 0:02:57.7]} 6. Be3 {[%clk 0:02:58.6]} 6... d6 {[%clk
0:02:57.2]} 7. Nc3 {[%clk 0:02:58.5]} 7... Nf6 {[%clk 0:02:57.2]} 8. Be2 {[%clk
0:02:58.6]} 8... O-O {[%clk 0:02:50.4]} 9. O-O {[%clk 0:02:58.3]} 9... Bd7
{[%clk 0:02:49.4]} 10. Rc1 {[%clk 0:02:53]} 10... Rc8 {[%clk 0:02:48.5]} 11. f3
{[%clk 0:02:49.6]} 11... Nxd4 {[%clk 0:02:39]} 12. Bxd4 {[%clk 0:02:49.5]} 12...
Be6 {[%clk 0:02:39.1]} 13. b3 {[%clk 0:02:44.8]} 13... a6 {[%clk 0:02:33.1]} 14.
Qd2 {[%clk 0:02:42.2]} 14... Nd7 {[%clk 0:02:27]} 15. Be3 {[%clk 0:02:30.5]}
15... Qc7 {[%clk 0:02:19.6]} 16. f4 {[%clk 0:02:19.1]} 16... f6 {[%clk
0:01:55.9]} 17. Nd5 {[%clk 0:02:14.5]} 17... Qd8 {[%clk 0:01:51.2]} 18. Qb4
{[%clk 0:02:06.7]} 18... Nc5 {[%clk 0:01:33]} 19. Rfd1 {[%clk 0:01:54.7]} 19...
a5 {[%clk 0:01:26.4]} 20. Qe1 {[%clk 0:01:33.9]} 20... f5 {[%clk 0:01:20.6]} 21.
e5 {[%clk 0:01:30.3]} 21... Qe8 {[%clk 0:01:10.6]} 22. Bf3 {[%clk 0:01:22.2]}
22... dxe5 {[%clk 0:00:58]} 23. fxe5 {[%clk 0:01:20.9]} 23... Ne4 {[%clk
0:00:44.4]} 24. Qxa5 {[%clk 0:01:12.5]} 24... Ra8 {[%clk 0:00:28.6]} 25. Qc7
{[%clk 0:01:08.9]} 25... Bxd5 {[%clk 0:00:23.3]} 26. Rxd5 {[%clk 0:00:57]} 26...
Rxa2 {[%clk 0:00:22.5]} 27. Rd7 {[%clk 0:00:57.1]} 27... f4 {[%clk 0:00:18.2]}
28. Rxe7 {[%clk 0:00:54.6]} 28... Qxe7 {[%clk 0:00:16.3]} 29. Qxe7 {[%clk
0:00:54.6]} 29... fxe3 {[%clk 0:00:16.5]} 30. Bxe4 {[%clk 0:00:44.4]} 30... e2
{[%clk 0:00:15]} 31. Bd5+ {[%clk 0:00:31.7]} 31... Kh8 {[%clk 0:00:13.4]} 32. h4
{[%clk 0:00:25.3]} 32... Bh6 {[%clk 0:00:11.5]} 33. Re1 {[%clk 0:00:25.3]} 33...
Be3+ {[%clk 0:00:10.3]} 34. Kh2 {[%clk 0:00:25.4]} 34... Rf1 {[%clk 0:00:10]}
35. Bf3 {[%clk 0:00:11.7]} 35... Bf4+ {[%clk 0:00:06.4]} 36. Kh3 {[%clk
0:00:06.7]} 36... Rh1+ {[%clk 0:00:02.8]} 37. Rxh1 {[%clk 0:00:06.4]} 1-0

[Event "Early-Titled-Tuesday-Blitz-February-13-2024"]
[Site "Chess.com"]
[Date "2024.02.13"]
[Round "2"]
[White "kaanadayhamle"]
[Black "lucasran"]
[Result "1-0"]
[WhiteElo "2424"]
[BlackElo "2692"]
[TimeControl "180+1"]
[EndTime "8:19:55 PST"]
[Termination "kaanadayhamle won by resignation"]

1. Nf3 {[%clk 0:03:00.9]} 1... Nf6 {[%clk 0:03:00.1]} 2. g3 {[%clk 0:03:01.3]}
2... b6 {[%clk 0:03:00.7]} 3. Bg2 {[%clk 0:03:02]} 3... Bb7 {[%clk 0:03:01.3]}
4. O-O {[%clk 0:03:02.7]} 4... g6 {[%clk 0:03:00.6]} 5. d4 {[%clk 0:03:03.2]}
5... Bg7 {[%clk 0:03:00.6]} 6. Bf4 {[%clk 0:03:03.9]} 6... O-O {[%clk
0:03:00.5]} 7. c4 {[%clk 0:03:03]} 7... e6 {[%clk 0:02:44.3]} 8. Nc3 {[%clk
0:03:03.2]} 8... Ne4 {[%clk 0:02:44.2]} 9. Nxe4 {[%clk 0:03:03.2]} 9... Bxe4
{[%clk 0:02:44.2]} 10. Qd2 {[%clk 0:03:03.9]} 10... d6 {[%clk 0:02:18.4]} 11.
Bh6 {[%clk 0:03:03]} 11... Nd7 {[%clk 0:02:16]} 12. Bxg7 {[%clk 0:03:03.2]}
12... Kxg7 {[%clk 0:02:15.9]} 13. Rac1 {[%clk 0:03:03.4]} 13... Qe7 {[%clk
0:02:11.4]} 14. Rfd1 {[%clk 0:03:03.7]} 14... Rad8 {[%clk 0:02:00.7]} 15. h4
{[%clk 0:03:03.6]} 15... e5 {[%clk 0:01:50.2]} 16. dxe5 {[%clk 0:02:52.2]} 16...
dxe5 {[%clk 0:01:45.1]} 17. Qc3 {[%clk 0:02:47.6]} 17... Bxf3 {[%clk 0:01:33.4]}
18. Bxf3 {[%clk 0:02:48.5]} 18... Nf6 {[%clk 0:01:26.6]} 19. Bg2 {[%clk
0:02:40.3]} 19... c5 {[%clk 0:00:35.3]} 20. a3 {[%clk 0:02:37]} 20... Rd6 {[%clk
0:00:30.3]} 21. Rxd6 {[%clk 0:02:33.8]} 21... Qxd6 {[%clk 0:00:31.1]} 22. e3
{[%clk 0:02:33.2]} 22... Rd8 {[%clk 0:00:30.9]} 23. Bf3 {[%clk 0:02:33]} 23...
Qd2 {[%clk 0:00:30.3]} 24. Qc2 {[%clk 0:02:20.6]} 24... Qxc2 {[%clk 0:00:28]}
25. Rxc2 {[%clk 0:02:21.5]} 25... e4 {[%clk 0:00:19]} 26. Be2 {[%clk 0:02:17.1]}
26... Kf8 {[%clk 0:00:19.1]} 27. Kf1 {[%clk 0:02:16.9]} 27... Ke7 {[%clk
0:00:19.2]} 28. Ke1 {[%clk 0:02:16.4]} 28... Ke6 {[%clk 0:00:19.6]} 29. Bf1
{[%clk 0:02:15.8]} 29... Ke5 {[%clk 0:00:16.3]} 30. Bh3 {[%clk 0:02:16]} 30...
Rd6 {[%clk 0:00:15.7]} 31. Rd2 {[%clk 0:02:00.2]} 31... Rxd2 {[%clk 0:00:15.2]}
32. Kxd2 {[%clk 0:02:01.1]} 32... Ne8 {[%clk 0:00:15.6]} 33. Kc3 {[%clk
0:01:58.1]} 33... Nd6 {[%clk 0:00:14.8]} 34. b4 {[%clk 0:01:40.3]} 34... f5
{[%clk 0:00:13.3]} 35. bxc5 {[%clk 0:01:35.2]} 35... bxc5 {[%clk 0:00:13.2]} 36.
Kb3 {[%clk 0:01:32.9]} 36... h5 {[%clk 0:00:02]} 37. Bf1 {[%clk 0:01:33]} 37...
Ke6 {[%clk 0:00:02.3]} 38. Ka4 {[%clk 0:01:32.7]} 38... Kd7 {[%clk 0:00:01.4]}
39. Ka5 {[%clk 0:01:26.1]} 39... Kc7 {[%clk 0:00:01.7]} 40. Ka6 {[%clk 0:01:26]}
40... Kb8 {[%clk 0:00:02.2]} 41. Be2 {[%clk 0:01:26]} 41... Ka8 {[%clk
0:00:02.5]} 42. Bf1 {[%clk 0:01:18.3]} 42... Kb8 {[%clk 0:00:02.7]} 43. Be2
{[%clk 0:01:16.2]} 43... Nb7 {[%clk 0:00:03.2]} 44. Kb5 {[%clk 0:01:14.1]} 44...
Kc7 {[%clk 0:00:03.5]} 45. a4 {[%clk 0:01:08.8]} 45... Kd6 {[%clk 0:00:02]} 46.
Ka6 {[%clk 0:01:08.8]} 46... Kc7 {[%clk 0:00:02.3]} 47. Kxa7 {[%clk 0:01:04.5]}
47... Na5 {[%clk 0:00:02.6]} 48. Ka6 {[%clk 0:01:01.9]} 48... Nc6 {[%clk
0:00:03.2]} 49. Kb5 {[%clk 0:01:00.2]} 49... Kd6 {[%clk 0:00:03.4]} 50. a5
{[%clk 0:01:00.3]} 50... Na7+ {[%clk 0:00:03.5]} 51. Kb6 {[%clk 0:01:00.7]}
51... Nc8+ {[%clk 0:00:02.5]} 52. Kb7 {[%clk 0:01:01.4]} 52... Kd7 {[%clk
0:00:03]} 53. a6 {[%clk 0:01:02.1]} 53... Nd6+ {[%clk 0:00:03.5]} 54. Kb8 {[%clk
0:01:02.2]} 54... Nc8 {[%clk 0:00:02.5]} 55. a7 {[%clk 0:01:02.3]} 55... Nb6
{[%clk 0:00:03.1]} 56. Kb7 {[%clk 0:00:59.5]} 56... Na8 {[%clk 0:00:03.4]} 57.
Kxa8 {[%clk 0:00:56.1]} 57... Kc8 {[%clk 0:00:04]} 58. Bd1 {[%clk 0:00:54.5]}
58... Kc7 {[%clk 0:00:04.6]} 59. Ba4 {[%clk 0:00:54.9]} 1-0

[Event "Early-Titled-Tuesday-Blitz-February-13-2024"]
[Site "Chess.com"]
[Date "2024.02.13"]
[Round "2"]
[White "VladimirKramnik"]
[Black "Cosi43"]
[Result "1-0"]
[WhiteElo "2930"]
[BlackElo "2629"]
[TimeControl "180+1"]
[EndTime "8:19:56 PST"]
[Termination "VladimirKramnik won by resignation"]

1. e4 {[%clk 0:03:00.9]} 1... d5 {[%clk 0:02:59.2]} 2. exd5 {[%clk 0:02:59.9]}
2... Qxd5 {[%clk 0:03:00.1]} 3. Nc3 {[%clk 0:03:00]} 3... Qa5 {[%clk 0:02:59.8]}
4. d4 {[%clk 0:02:59.4]} 4... Nf6 {[%clk 0:02:59.3]} 5. Nf3 {[%clk 0:02:57.2]}
5... c6 {[%clk 0:02:59.1]} 6. Bd2 {[%clk 0:02:53.6]} 6... Bf5 {[%clk 0:02:57.9]}
7. Bc4 {[%clk 0:02:50.3]} 7... e6 {[%clk 0:02:57.4]} 8. Nd5 {[%clk 0:02:48.7]}
8... Qd8 {[%clk 0:02:55.7]} 9. Nxf6+ {[%clk 0:02:48.7]} 9... gxf6 {[%clk
0:02:54.4]} 10. O-O {[%clk 0:02:48.3]} 10... Nd7 {[%clk 0:02:46.8]} 11. Re1
{[%clk 0:02:46.8]} 11... Be7 {[%clk 0:02:41.9]} 12. a4 {[%clk 0:02:37.9]} 12...
Qc7 {[%clk 0:02:37.5]} 13. a5 {[%clk 0:02:35.3]} 13... Rg8 {[%clk 0:02:28.5]}
14. b4 {[%clk 0:02:25]} 14... a6 {[%clk 0:02:25.2]} 15. Bf1 {[%clk 0:02:23.5]}
15... Nf8 {[%clk 0:01:20.2]} 16. c4 {[%clk 0:02:18.2]} 16... Ng6 {[%clk
0:01:18.8]} 17. g3 {[%clk 0:02:09.9]} 17... h5 {[%clk 0:01:14.2]} 18. Bg2 {[%clk
0:01:59.3]} 18... h4 {[%clk 0:01:13]} 19. d5 {[%clk 0:01:56.9]} 19... hxg3
{[%clk 0:00:59.5]} 20. hxg3 {[%clk 0:01:56.5]} 20... Bg4 {[%clk 0:00:44.7]} 21.
Qb3 {[%clk 0:01:41.6]} 21... cxd5 {[%clk 0:00:35.7]} 22. cxd5 {[%clk 0:01:40]}
22... e5 {[%clk 0:00:34.8]} 23. b5 {[%clk 0:01:30.2]} 23... Qd6 {[%clk
0:00:20.9]} 24. Ra4 {[%clk 0:01:10]} 24... f5 {[%clk 0:00:11.5]} 25. Bb4 {[%clk
0:01:06]} 25... Qf6 {[%clk 0:00:11.7]} 26. d6 {[%clk 0:00:54.9]} 26... Bxd6
{[%clk 0:00:06]} 27. Bxd6 {[%clk 0:00:53.8]} 27... Qxd6 {[%clk 0:00:06.7]} 28.
bxa6 {[%clk 0:00:53.3]} 28... bxa6 {[%clk 0:00:05.1]} 29. Nxe5 {[%clk
0:00:45.4]} 29... Nxe5 {[%clk 0:00:05.4]} 30. Bxa8 {[%clk 0:00:38.5]} 30... Kf8
{[%clk 0:00:06.1]} 31. Qb4 {[%clk 0:00:36.8]} 31... Qxb4 {[%clk 0:00:02.9]} 32.
Rxb4 {[%clk 0:00:37.3]} 32... Nf3+ {[%clk 0:00:01.1]} 33. Bxf3 {[%clk 0:00:36]}
33... Bxf3 {[%clk 0:00:02]} 34. Rb8+ {[%clk 0:00:35.3]} 34... Kg7 {[%clk
0:00:02.6]} 35. Rxg8+ {[%clk 0:00:35.7]} 35... Kxg8 {[%clk 0:00:03.5]} 36. Re5
{[%clk 0:00:34]} 36... Be4 {[%clk 0:00:02.3]} 37. Rc5 {[%clk 0:00:29.4]} 37...
Kg7 {[%clk 0:00:02.2]} 38. Kf1 {[%clk 0:00:28.9]} 38... Kf6 {[%clk 0:00:02.8]}
39. Ke2 {[%clk 0:00:28.9]} 39... Kg5 {[%clk 0:00:02.9]} 40. Ke3 {[%clk
0:00:28.3]} 40... Bg2 {[%clk 0:00:01.6]} 41. f3 {[%clk 0:00:27.2]} 41... Kg6
{[%clk 0:00:01.7]} 42. Rc6+ {[%clk 0:00:26.8]} 1-0

[Event "Early-Titled-Tuesday-Blitz-February-13-2024"]
[Site "Chess.com"]
[Date "2024.02.13"]
[Round "2"]
[White "bubeliang"]
[Black "albi1999"]
[Result "1/2-1/2"]
[WhiteElo "2842"]
[BlackElo "2597"]
[TimeControl "180+1"]
[EndTime "8:19:56 PST"]
[Termination "Game drawn by agreement"]

1. e4 {[%clk 0:03:00.9]} 1... c5 {[%clk 0:02:53.7]} 2. c3 {[%clk 0:02:59.1]}
2... e6 {[%clk 0:02:48.4]} 3. d4 {[%clk 0:02:57.1]} 3... d5 {[%clk 0:02:49]} 4.
exd5 {[%clk 0:02:58]} 4... Qxd5 {[%clk 0:02:45.7]} 5. Nf3 {[%clk 0:02:58.3]}
5... Nf6 {[%clk 0:02:45.3]} 6. Na3 {[%clk 0:02:58.3]} 6... a6 {[%clk 0:02:39.9]}
7. Be2 {[%clk 0:02:49]} 7... Be7 {[%clk 0:02:31.5]} 8. Nc4 {[%clk 0:02:47.7]}
8... Nbd7 {[%clk 0:02:31.1]} 9. Ne3 {[%clk 0:02:44]} 9... Qd6 {[%clk 0:02:25.2]}
10. O-O {[%clk 0:02:41.6]} 10... O-O {[%clk 0:02:24.6]} 11. Nc4 {[%clk
0:02:35.7]} 11... Qc7 {[%clk 0:02:20.7]} 12. a4 {[%clk 0:02:35]} 12... b6 {[%clk
0:02:20]} 13. Nfe5 {[%clk 0:02:27.9]} 13... cxd4 {[%clk 0:02:15.7]} 14. cxd4
{[%clk 0:02:21.2]} 14... Nd5 {[%clk 0:02:08.7]} 15. Bf3 {[%clk 0:02:17.3]} 15...
Bb7 {[%clk 0:02:07.7]} 16. Nxd7 {[%clk 0:02:14.5]} 16... Qxd7 {[%clk 0:02:05.3]}
17. Bxd5 {[%clk 0:02:14.5]} 17... Qxd5 {[%clk 0:02:02.8]} 18. Ne3 {[%clk
0:02:14.8]} 18... Qe4 {[%clk 0:01:57.4]} 19. Qg4 {[%clk 0:02:03.3]} 19... Rac8
{[%clk 0:01:49.3]} 20. Qxe4 {[%clk 0:02:00.7]} 20... Bxe4 {[%clk 0:01:50.2]} 21.
Bd2 {[%clk 0:02:01.4]} 21... Rfd8 {[%clk 0:01:49.6]} 22. Bc3 {[%clk 0:02:01.5]}
22... Bf6 {[%clk 0:01:45.1]} 23. Rfd1 {[%clk 0:02:00.9]} 23... Rd7 {[%clk
0:01:44.3]} 24. Rd2 {[%clk 0:02:00.2]} 24... Rcd8 {[%clk 0:01:41.4]} 25. Rad1
{[%clk 0:01:59.1]} 25... Bc6 {[%clk 0:01:41.2]} 26. b3 {[%clk 0:01:55.8]} 26...
Bd5 {[%clk 0:01:36.7]} 27. Rb1 {[%clk 0:01:19.7]} 27... Rc8 {[%clk 0:01:21.8]}
28. Ba1 {[%clk 0:01:18.4]} 28... Be4 {[%clk 0:01:17.8]} 29. Rbd1 {[%clk
0:01:17.3]} 29... b5 {[%clk 0:01:18.1]} 30. f3 {[%clk 0:01:15.1]} 30... Bb7
{[%clk 0:01:11.1]} 31. axb5 {[%clk 0:01:14]} 31... axb5 {[%clk 0:01:12]} 32. d5
{[%clk 0:01:03.4]} 32... Bg5 {[%clk 0:01:01.7]} 33. Kf2 {[%clk 0:00:54.5]} 33...
Bxd5 {[%clk 0:00:58.7]} 34. Be5 {[%clk 0:00:48.1]} 34... f6 {[%clk 0:00:51.9]}
35. Bg3 {[%clk 0:00:39.4]} 35... Bxe3+ {[%clk 0:00:25.1]} 36. Kxe3 {[%clk
0:00:40.3]} 36... Kf7 {[%clk 0:00:19.6]} 37. b4 {[%clk 0:00:40.3]} 37... Rc4
{[%clk 0:00:19.2]} 38. Rd4 {[%clk 0:00:40.5]} 38... Rc2 {[%clk 0:00:16]} 39.
R1d2 {[%clk 0:00:40.5]} 39... Rxd2 {[%clk 0:00:15.5]} 40. Kxd2 {[%clk
0:00:40.5]} 40... e5 {[%clk 0:00:15.1]} 41. Rd3 {[%clk 0:00:40.7]} 41... Ke6
{[%clk 0:00:15.5]} 42. Bf2 {[%clk 0:00:41]} 42... Rc7 {[%clk 0:00:14.7]} 43. Bc5
{[%clk 0:00:41.2]} 43... Rc8 {[%clk 0:00:15.2]} 44. Ra3 {[%clk 0:00:41.4]} 44...
Ra8 {[%clk 0:00:15.6]} 45. Rxa8 {[%clk 0:00:39.7]} 45... Bxa8 {[%clk 0:00:16.5]}
46. Ke3 {[%clk 0:00:40.3]} 46... g5 {[%clk 0:00:17.1]} 47. g3 {[%clk 0:00:40.1]}
47... h5 {[%clk 0:00:17.2]} 48. h4 {[%clk 0:00:38.7]} 48... gxh4 {[%clk
0:00:16.4]} 49. gxh4 {[%clk 0:00:39.6]} 49... Kd5 {[%clk 0:00:14.6]} 50. f4
{[%clk 0:00:38.3]} 50... f5 {[%clk 0:00:13.5]} 51. fxe5 {[%clk 0:00:37.4]} 51...
Kxe5 {[%clk 0:00:14.4]} 52. Bd4+ {[%clk 0:00:38]} 52... Ke6 {[%clk 0:00:13.5]}
53. Kf4 {[%clk 0:00:38.1]} 53... Be4 {[%clk 0:00:13.8]} 54. Bc5 {[%clk
0:00:38.1]} 54... Bd3 {[%clk 0:00:13.2]} 55. Bb6 {[%clk 0:00:38.2]} 55... Kd5
{[%clk 0:00:13.1]} 1/2-1/2

[Event "Early-Titled-Tuesday-Blitz-February-13-2024"]
[Site "Chess.com"]
[Date "2024.02.13"]
[Round "2"]
[White "themind1hunter"]
[Black "FMCarmona"]
[Result "1-0"]
[WhiteElo "2510"]
[BlackElo "2249"]
[TimeControl "180+1"]
[EndTime "8:19:58 PST"]
[Termination "themind1hunter won by resignation"]

1. Nf3 {[%clk 0:02:53.6]} 1... d5 {[%clk 0:02:59.1]} 2. d4 {[%clk 0:02:52.5]}
2... Nf6 {[%clk 0:02:59.5]} 3. g3 {[%clk 0:02:50.5]} 3... e6 {[%clk 0:02:58.8]}
4. Bg2 {[%clk 0:02:51.4]} 4... Be7 {[%clk 0:02:58.7]} 5. O-O {[%clk 0:02:52.3]}
5... O-O {[%clk 0:02:59.1]} 6. c4 {[%clk 0:02:50.5]} 6... c6 {[%clk 0:02:59.6]}
7. b3 {[%clk 0:02:47.5]} 7... b6 {[%clk 0:02:59.1]} 8. Bb2 {[%clk 0:02:48]} 8...
Bb7 {[%clk 0:02:59.3]} 9. Nc3 {[%clk 0:02:47.6]} 9... Nbd7 {[%clk 0:02:59.1]}
10. Qc2 {[%clk 0:02:47.8]} 10... Rc8 {[%clk 0:02:57.3]} 11. e4 {[%clk 0:02:46]}
11... dxe4 {[%clk 0:02:27.4]} 12. Nxe4 {[%clk 0:02:40.5]} 12... Nxe4 {[%clk
0:02:27.8]} 13. Qxe4 {[%clk 0:02:38.5]} 13... Nf6 {[%clk 0:02:27.2]} 14. Qe2
{[%clk 0:02:32.4]} 14... Qc7 {[%clk 0:02:24.6]} 15. Ne5 {[%clk 0:02:29]} 15...
Rcd8 {[%clk 0:02:20.5]} 16. Rfd1 {[%clk 0:02:27.5]} 16... c5 {[%clk 0:02:18.3]}
17. Bxb7 {[%clk 0:02:26.3]} 17... Qxb7 {[%clk 0:02:17.1]} 18. Qf3 {[%clk
0:02:16.9]} 18... Qxf3 {[%clk 0:02:14.1]} 19. Nxf3 {[%clk 0:02:17.8]} 19... cxd4
{[%clk 0:02:09.5]} 20. Bxd4 {[%clk 0:02:18.7]} 20... Ne4 {[%clk 0:01:09.5]} 21.
Kf1 {[%clk 0:02:08.7]} 21... Bc5 {[%clk 0:01:02.1]} 22. Ke2 {[%clk 0:01:53.7]}
22... f6 {[%clk 0:00:57.8]} 23. Bxc5 {[%clk 0:01:37.4]} 23... Nxc5 {[%clk
0:00:57.4]} 24. Nd4 {[%clk 0:01:36.1]} 24... e5 {[%clk 0:00:52.3]} 25. Nc6
{[%clk 0:01:34.3]} 25... Rxd1 {[%clk 0:00:46.1]} 26. Rxd1 {[%clk 0:01:33.7]}
26... a5 {[%clk 0:00:42.9]} 27. Ke3 {[%clk 0:01:31]} 27... Kf7 {[%clk
0:00:41.1]} 28. Rd6 {[%clk 0:01:29.5]} 28... Rc8 {[%clk 0:00:34.1]} 29. Na7
{[%clk 0:01:28.7]} 29... Rc7 {[%clk 0:00:33.1]} 30. Nb5 {[%clk 0:01:27.9]} 30...
Rb7 {[%clk 0:00:32.9]} 31. g4 {[%clk 0:01:11]} 31... Ke7 {[%clk 0:00:32.9]} 32.
f3 {[%clk 0:01:02.9]} 32... a4 {[%clk 0:00:26.1]} 33. b4 {[%clk 0:01:02]} 33...
Na6 {[%clk 0:00:22.7]} 34. a3 {[%clk 0:01:01.2]} 34... Nb8 {[%clk 0:00:23.2]}
35. Ke4 {[%clk 0:00:57.7]} 35... Nd7 {[%clk 0:00:22.8]} 36. Kd5 {[%clk
0:00:55.6]} 36... Rb8 {[%clk 0:00:20.5]} 37. Na7 {[%clk 0:00:39]} 37... Rb7
{[%clk 0:00:18.4]} 38. Nc6+ {[%clk 0:00:32.9]} 38... Ke8 {[%clk 0:00:19.1]} 39.
Re6+ {[%clk 0:00:31.2]} 39... Kf8 {[%clk 0:00:17.1]} 40. Kd6 {[%clk 0:00:22.8]}
40... Nb8 {[%clk 0:00:17.2]} 41. Nxb8 {[%clk 0:00:21]} 41... Rxb8 {[%clk
0:00:18.1]} 42. Kc7 {[%clk 0:00:21.6]} 42... Kf7 {[%clk 0:00:08.9]} 43. Rxb6
{[%clk 0:00:20.4]} 43... Rxb6 {[%clk 0:00:08.7]} 44. Kxb6 {[%clk 0:00:21.3]}
44... g6 {[%clk 0:00:07.9]} 45. c5 {[%clk 0:00:21.5]} 45... f5 {[%clk
0:00:07.5]} 46. c6 {[%clk 0:00:21.7]} 46... Ke7 {[%clk 0:00:07.4]} 47. c7 {[%clk
0:00:21.4]} 1-0

[Event "Early-Titled-Tuesday-Blitz-February-13-2024"]
[Site "Chess.com"]
[Date "2024.02.13"]
[Round "2"]
[White "Njal28"]
[Black "pifion"]
[Result "0-1"]
[WhiteElo "2980"]
[BlackElo "2673"]
[TimeControl "180+1"]
[EndTime "8:19:59 PST"]
[Termination "pifion won on time"]

1. d4 {[%clk 0:03:00.9]} 1... Nf6 {[%clk 0:02:59.2]} 2. c4 {[%clk 0:03:01.2]}
2... e6 {[%clk 0:02:59.3]} 3. Nc3 {[%clk 0:03:00.4]} 3... Bb4 {[%clk 0:02:59.9]}
4. e3 {[%clk 0:03:00.7]} 4... O-O {[%clk 0:02:58.8]} 5. a3 {[%clk 0:03:01.2]}
5... Bxc3+ {[%clk 0:02:57.7]} 6. bxc3 {[%clk 0:03:02.1]} 6... Nc6 {[%clk
0:02:57.5]} 7. Ne2 {[%clk 0:03:01.7]} 7... b6 {[%clk 0:02:52.7]} 8. Ng3 {[%clk
0:03:02.6]} 8... Ba6 {[%clk 0:02:52.4]} 9. e4 {[%clk 0:03:03]} 9... Ne8 {[%clk
0:02:50.9]} 10. Bd3 {[%clk 0:03:00.6]} 10... Na5 {[%clk 0:02:49.9]} 11. Qe2
{[%clk 0:03:00.3]} 11... c5 {[%clk 0:02:31.2]} 12. d5 {[%clk 0:02:49.1]} 12...
f6 {[%clk 0:01:30.1]} 13. O-O {[%clk 0:02:05.4]} 13... Nd6 {[%clk 0:01:28.2]}
14. Nh5 {[%clk 0:01:59.3]} 14... Bxc4 {[%clk 0:01:24.1]} 15. Bf4 {[%clk
0:00:57]} 15... e5 {[%clk 0:01:23.6]} 16. Be3 {[%clk 0:00:49.3]} 16... Bxd3
{[%clk 0:01:19.1]} 17. Qxd3 {[%clk 0:00:50.2]} 17... c4 {[%clk 0:01:16.1]} 18.
Qc2 {[%clk 0:00:49.8]} 18... Nb3 {[%clk 0:01:14.8]} 19. Rae1 {[%clk 0:00:46]}
19... Qe8 {[%clk 0:01:03.6]} 20. Ng3 {[%clk 0:00:41.9]} 20... g5 {[%clk
0:01:02.4]} 21. Qd1 {[%clk 0:00:37.7]} 21... Qg6 {[%clk 0:01:00.1]} 22. Qg4
{[%clk 0:00:38.1]} 22... Rf7 {[%clk 0:00:59.1]} 23. h4 {[%clk 0:00:35.3]} 23...
h6 {[%clk 0:00:50.5]} 24. f3 {[%clk 0:00:35.7]} 24... Raf8 {[%clk 0:00:48.6]}
25. Kf2 {[%clk 0:00:23.2]} 25... f5 {[%clk 0:00:45.1]} 26. exf5 {[%clk
0:00:23.4]} 26... Nxf5 {[%clk 0:00:45]} 27. hxg5 {[%clk 0:00:20.9]} 27... Nxe3
{[%clk 0:00:33.9]} 28. Rxe3 {[%clk 0:00:21.2]} 28... d6 {[%clk 0:00:31.3]} 29.
Ne4 {[%clk 0:00:14.5]} 29... Rf5 {[%clk 0:00:20.4]} 30. Rh1 {[%clk 0:00:12.4]}
30... hxg5 {[%clk 0:00:20.2]} 31. Rh5 {[%clk 0:00:12.9]} 31... Nc5 {[%clk
0:00:19.1]} 32. Nxg5 {[%clk 0:00:07.1]} 32... Nd3+ {[%clk 0:00:19.2]} 33. Kg1
{[%clk 0:00:07.2]} 33... Nf4 {[%clk 0:00:19.4]} 34. Qh4 {[%clk 0:00:01.1]} 34...
Nxh5 {[%clk 0:00:18.5]} 35. Ne4 {[%clk 0:00:01.5]} 35... Nf4 {[%clk 0:00:17.9]}
36. g4 {[%clk 0:00:02]} 36... R5f7 {[%clk 0:00:17.3]} 37. Kf2 {[%clk 0:00:02.6]}
37... Rh7 {[%clk 0:00:17.5]} 38. Qg3 {[%clk 0:00:03.3]} 38... Rh3 {[%clk
0:00:17.7]} 39. Qg1 {[%clk 0:00:03.9]} 39... Nd3+ {[%clk 0:00:17.6]} 40. Ke2
{[%clk 0:00:03.2]} 40... Nf4+ {[%clk 0:00:17.8]} 41. Kd2 {[%clk 0:00:03.7]}
41... Rf7 {[%clk 0:00:18.1]} 42. Kc1 {[%clk 0:00:03.5]} 42... Rfh7 {[%clk
0:00:18.3]} 43. Re1 {[%clk 0:00:04]} 43... Rh2 {[%clk 0:00:18.6]} 44. Qe3 {[%clk
0:00:04.1]} 44... Nd3+ {[%clk 0:00:18.6]} 45. Kb1 {[%clk 0:00:04.3]} 45... Nxe1
{[%clk 0:00:19.2]} 46. g5 {[%clk 0:00:03.9]} 46... Rh1 {[%clk 0:00:19.4]} 47. a4
{[%clk 0:00:01.3]} 47... R7h2 {[%clk 0:00:18.9]} 0-1